fUST/lending_fUST_20250707
["ID","MTS","AMOUNT","RATE_DAILY","PERIOD"]
[370011450,1751829053032,-1083.34,0.00019601,2]
[370011451,1751829053041,-1423.25,0.00019601,2]
[370011452,1751829053051,-460.0,0.00019601,2]
[370011453,1751829053061,-460.0,0.00019603,2]
[370011454,1751829053070,-460.0,0.00019603,2]
[370011455,1751829053079,-726.78,0.00019603,2]
[370011456,1751829053089,-460.0,0.00019603,2]
[370011457,1751829053098,-2304.57,0.00019603,2]
[370011458,1751829053107,-460.0,0.00019603,2]
[370011459,1751829053116,-482.31,0.00019603,2]
[370011460,1751829053125,-716.37,0.00019603,2]
[370011461,1751829053134,-460.0,0.00019603,2]
[370011462,1751829053144,-460.0,0.00019603,2]
[370011463,1751829053153,-460.0,0.00019603,2]
[370011464,1751829053162,-151.0,0.00019607,2]
[370011465,1751829053172,-518.66,0.00019607,2]
[370011466,1751829053181,-422.36,0.00019607,2]
[370011467,1751829053190,-460.0,0.00019607,2]
[370011468,1751829053200,-568.47,0.00019607,2]
[370011469,1751829053209,-644.88,0.00019607,2]
[370011470,1751829053218,-1673.97,0.00019607,2]
[370011471,1751829053227,-671.7,0.00019607,2]
[370011472,1751829053236,-1018.32,0.00019607,2]
[370011473,1751829053245,-460.0,0.00019607,2]
[370011474,1751829053254,-1464.64,0.00019607,2]
[370011475,1751829053264,-1068.81,0.00019607,2]
[370011476,1751829053272,-2141.93,0.00019608,2]
[370011477,1751829053281,-460.0,0.00019608,2]
[370011478,1751829053290,-1393.2,0.00019608,2]
[370011479,1751829053299,-521.21,0.00019608,2]
[370011480,1751829053309,-3697.57,0.00019608,2]
[370011481,1751829053318,-1179.98,0.00019608,2]
[370011482,1751829053327,-759.94855885,0.00019609,2]
[370011483,1751829053477,-4240.05144115,0.00019609,2]
[370011484,1751829053486,-241.996529,0.00019621,2]
[370011485,1751829053496,-1500.0,0.00019664,2]
[370011486,1751829053506,-2152.0,0.00019665,2]
[370011487,1751829053515,-678.0,0.00019665,2]
[370011488,1751829053525,-406.0,0.00019665,2]
[370011489,1751829053534,-428.239,0.00019665,2]
[370011490,1751829053544,-2500.0,0.00019668,2]
[370011491,1751829053553,-231.5,0.00019668,3]
[370011492,1751829053562,-168.549556,0.00019669,2]
[370011493,1751829053571,-1517.63302107,0.00019672,2]
[370011494,1751829053581,-5202.0,0.00019674,2]
[370011495,1751829053591,-241.996529,0.00019705,2]
[370011496,1751829053601,-660.94,0.00019705,2]
[370011497,1751829053611,-460.0,0.00019705,2]
[370011498,1751829053620,-460.0,0.00019705,2]
[370011499,1751829053629,-807.44,0.00019705,2]
[370011500,1751829053639,-460.0,0.00019705,2]
[370011501,1751829053650,-460.0,0.00019705,2]
[370011502,1751829053660,-541.15,0.00019705,2]
[370011503,1751829053670,-151.0,0.00019707,2]
[370011504,1751829053678,-500.0,0.00019736,2]
[370011505,1751829053687,-500.0,0.00019736,2]
[370011506,1751829053699,-222.6671873,0.00019764,2]
[370011507,1751829053709,-241.996529,0.00019789,2]
[370011508,1751829053719,-3698.98664026,0.000198,2]
[370011509,1751829053739,-151.0,0.000198,2]
[370011510,1751829053750,-1200.0,0.00019824,2]
[370011511,1751829053759,-500.74772515,0.00019824,2]
[370011512,1751829053768,-1000.0,0.00019824,2]
[370011513,1751829053778,-168.549556,0.00019828,2]
[370011514,1751829053787,-241.996529,0.00019873,2]
[370011515,1751829053796,-1648.69,0.00019874,2]
[370011516,1751829053806,-2459.02,0.00019875,2]
[370011517,1751829053815,-460.0,0.00019875,2]
[370011518,1751829053825,-1878.33,0.00019875,2]
[370011519,1751829053834,-2261.21,0.00019875,2]
[370011520,1751829053843,-2373.73,0.00019875,2]
[370011521,1751829053854,-1821.06,0.00019875,2]
[370011522,1751829053863,-1339.43,0.00019875,2]
[370011523,1751829053872,-1083.34,0.00019875,2]
[370011524,1751829053881,-1423.25,0.00019875,2]
[370011525,1751829053890,-460.0,0.00019875,2]
[370011526,1751829053900,-460.0,0.00019877,2]
[370011527,1751829053909,-460.0,0.00019877,2]
[370011528,1751829053919,-726.78,0.00019877,2]
[370011529,1751829053928,-460.0,0.00019877,2]
[370011530,1751829053937,-2304.57,0.00019877,2]
[370011531,1751829053946,-460.0,0.00019877,2]
[370011532,1751829053956,-482.31,0.00019877,2]
[370011533,1751829053965,-716.37,0.00019877,2]
[370011534,1751829053974,-460.0,0.00019877,2]
[370011535,1751829053984,-460.0,0.00019877,2]
[370011536,1751829053993,-460.0,0.00019877,2]
[370011537,1751829054002,-518.66,0.00019881,2]
[370011538,1751829054011,-460.0,0.00019881,2]
[370011539,1751829054021,-568.47,0.00019881,2]
[370011540,1751829054030,-644.88,0.00019881,2]
[370011541,1751829054039,-1673.97,0.00019881,2]
[370011542,1751829054048,-671.7,0.00019881,2]
[370011543,1751829054058,-1018.32,0.00019881,2]
[370011544,1751829054067,-224.5316254,0.00019881,2]
[370011545,1751829054077,-1464.64,0.00019881,2]
[370011546,1751829054086,-1068.81,0.00019881,2]
[370011547,1751829054096,-2141.93,0.00019882,2]
[370011548,1751829054105,-460.0,0.00019882,2]
[370011549,1751829054114,-151.0,0.00019882,2]
[370011550,1751829054123,-1393.2,0.00019882,2]
[370011551,1751829054132,-585.611376,0.00019882,2]
[370011552,1751829054141,-585.611376,0.00019882,2]
[370011553,1751829054150,-521.21,0.00019882,2]
[370011554,1751829054159,-3697.57,0.00019882,2]
[370011555,1751829054168,-1179.98,0.00019882,2]
[370011556,1751829054177,-198.182741,0.00019882,2]
[370011557,1751829054187,-198.182741,0.00019882,2]
[370011558,1751829054195,-308.034684,0.00019882,2]
[370011559,1751829054205,-308.034684,0.00019882,2]
[370011560,1751829054214,-168.0,0.00019908,2]
[370011561,1751829054223,-241.996529,0.00019957,2]
[370011562,1751829054233,-600.0,0.00019968,2]
[370011563,1751829054241,-660.94,0.00019979,2]
[370011564,1751829054250,-460.0,0.00019979,2]
[370011565,1751829054260,-460.0,0.00019979,2]
[370011566,1751829054269,-807.44,0.00019979,2]
[370011567,1751829054278,-151.0,0.00019979,2]
[370011568,1751829054287,-460.0,0.00019979,2]
[370011569,1751829054296,-195.125959,0.00019979,2]
[370011570,1751829054306,-195.125959,0.00019979,2]
[370011571,1751829054315,-151.0,0.00019979,2]
[370011572,1751829054324,-460.0,0.00019979,2]
[370011573,1751829054333,-541.15,0.00019979,2]
[370011574,1751829054342,-202.487185,0.00019981,2]
[370011575,1751829054351,-202.487185,0.00019981,2]
[370011576,1751829054360,-163.835633,0.00019981,2]
[370011577,1751829054369,-151.0,0.00019981,2]
[370011578,1751829054378,-151.0,0.00019982,2]
[370011579,1751829054387,-75373.74034781,0.0002,2]
[370011580,1751829054397,-500.0,0.0002,2]
[370011581,1751829054406,-151.0,0.0002,2]
[370011582,1751829054416,-151.0,0.0002,2]
[370011583,1751829054425,-1000.0,0.0002,2]
[370011584,1751829054434,-300.36645618,0.0002,2]
[370011585,1751829054443,-168.0,0.0002004,2]
[370011586,1751829054452,-168.0,0.00020085,2]
[370011587,1751829054461,-151.0,0.00020087,2]
[370011588,1751829054470,-151.0,0.00020107,2]
[370011589,1751829054480,-587.0,0.00020117,2]
[370011590,1751829054488,-152.636,0.0002012,2]
[370011591,1751829054498,-274.592,0.00020137,2]
[370011592,1751829054508,-179.889,0.00020137,2]
[370011593,1751829054517,-201.829,0.00020137,2]
[370011594,1751829054526,-214.063,0.00020137,2]
[370011595,1751829054535,-248.989,0.00020137,2]
[370011596,1751829054545,-249.539,0.00020137,2]
[370011597,1751829054555,-150.318,0.00020137,2]
[370011598,1751829054564,-259.376,0.00020137,2]
[370011599,1751829054573,-217.056,0.00020137,2]
[370011600,1751829054583,-967.0,0.00020137,2]
[370011601,1751829054592,-307.518305,0.0002014,2]
[370011602,1751829054602,-231.5,0.00020144,3]
[370011603,1751829054610,-1648.69,0.00020148,2]
[370011604,1751829054620,-2459.02,0.00020149,2]
[370011605,1751829054629,-460.0,0.00020149,2]
[370011606,1751829054639,-1878.33,0.00020149,2]
[370011607,1751829054651,-2261.21,0.00020149,2]
[370011608,1751829054661,-2373.73,0.00020149,2]
[370011609,1751829054670,-1821.06,0.00020149,2]
[370011610,1751829054679,-1339.43,0.00020149,2]
[370011611,1751829054688,-1083.34,0.00020149,2]
[370011612,1751829054696,-1423.25,0.00020149,2]
[370011613,1751829054817,-460.0,0.00020149,2]
[370011614,1751829054827,-275.01565437,0.00020151,2]
[370011615,1751829054837,-460.0,0.00020151,2]
[370011616,1751829054847,-726.78,0.00020151,2]
[370011617,1751829054857,-460.0,0.00020151,2]
[370011618,1751829054866,-2304.57,0.00020151,2]
[370011619,1751829054875,-460.0,0.00020151,2]
[370011620,1751829054885,-482.31,0.00020151,2]
[370011621,1751829054894,-716.37,0.00020151,2]
[370011622,1751829054904,-460.0,0.00020151,2]
[370011623,1751829054913,-460.0,0.00020151,2]
[370011624,1751829054923,-460.0,0.00020151,2]
[370011625,1751829054933,-223.0315306,0.00020155,2]
[370011626,1751829054943,-518.66,0.00020155,2]
[370011627,1751829054954,-460.0,0.00020155,2]
[370011628,1751829054963,-568.47,0.00020155,2]
[370011629,1751829054973,-644.88,0.00020155,2]
[370011630,1751829054983,-1673.97,0.00020155,2]
[370011631,1751829054993,-671.7,0.00020155,2]
[370011632,1751829055002,-1018.32,0.00020155,2]
[370011633,1751829055012,-1464.64,0.00020155,2]
[370011634,1751829055022,-1068.81,0.00020155,2]
[370011635,1751829055032,-151.0,0.00020156,2]
[370011636,1751829055042,-195.125959,0.00020156,2]
[370011637,1751829055053,-195.125957,0.00020156,2]
[370011638,1751829055062,-151.0,0.00020156,2]
[370011639,1751829055071,-2141.93,0.00020156,2]
[370011640,1751829055081,-536.39,0.00020156,2]
[370011641,1751829055091,-151.0,0.00020156,2]
[370011642,1751829055100,-1393.2,0.00020156,2]
[370011643,1751829055109,-585.611376,0.00020156,2]
[370011644,1751829055118,-585.611366,0.00020156,2]
[370011645,1751829055127,-521.21,0.00020156,2]
[370011646,1751829055136,-3697.57,0.00020156,2]
[370011647,1751829055146,-1179.98,0.00020156,2]
[370011648,1751829055155,-198.182741,0.00020156,2]
[370011649,1751829055165,-198.182741,0.00020156,2]
[370011650,1751829055174,-308.034684,0.00020156,2]
[370011651,1751829055184,-308.034691,0.00020156,2]
[370011652,1751829055193,-5000.0,0.00020157,2]
[370011653,1751829055202,-168.0,0.00020162,2]
[370011654,1751829055211,-168.0,0.00020176,2]
[370011655,1751829055221,-1015.741863,0.00020187,2]
[370011656,1751829055230,-168.0,0.00020199,2]
[370011657,1751829055240,-3000.0,0.00020216,2]
[370011658,1751829055249,-660.94,0.00020253,2]
[370011659,1751829055258,-460.0,0.00020253,2]
[370011660,1751829055268,-202.487185,0.00020253,2]
[370011661,1751829055277,-202.487185,0.00020253,2]
[370011662,1751829055287,-460.0,0.00020253,2]
[370011663,1751829055296,-163.835633,0.00020253,2]
[370011664,1751829055305,-151.0,0.00020253,2]
[370011665,1751829055314,-807.44,0.00020253,2]
[370011666,1751829055323,-460.0,0.00020253,2]
[370011667,1751829055332,-460.0,0.00020253,2]
[370011668,1751829055341,-541.15,0.00020253,2]
[370011669,1751829055350,-168.0,0.00020289,2]
[370011670,1751829055359,-2351.0,0.00020317,2]
[370011671,1751829055369,-1800.0,0.00020372,2]
[370011672,1751829055379,-1500.0,0.00020372,2]
[370011673,1751829055388,-1517.63302107,0.00020384,2]
[370011674,1751829055399,-160.0,0.000204,3]
[370011675,1751829055410,-160.0,0.000204,3]
[370011676,1751829055419,-848.15551661,0.000204,3]
[370011677,1751829055428,-214.03875559,0.000204,3]
[370011678,1751829055437,-150.0,0.00020414,2]
[370011679,1751829055447,-1648.69,0.00020422,2]
[370011680,1751829055456,-2459.02,0.00020423,2]
[370011681,1751829055465,-460.0,0.00020423,2]
[370011682,1751829055474,-1878.33,0.00020423,2]
[370011683,1751829055483,-2261.21,0.00020423,2]
[370011684,1751829055494,-2373.73,0.00020423,2]
[370011685,1751829055504,-1821.06,0.00020423,2]
[370011686,1751829055513,-1339.43,0.00020423,2]
[370011687,1751829055523,-1083.34,0.00020423,2]
[370011688,1751829055534,-1423.25,0.00020423,2]
[370011689,1751829055543,-460.0,0.00020423,2]
[370011690,1751829055553,-460.0,0.00020425,2]
[370011691,1751829055562,-726.78,0.00020425,2]
[370011692,1751829055571,-460.0,0.00020425,2]
[370011693,1751829055580,-2304.57,0.00020425,2]
[370011694,1751829055589,-377.88,0.00020425,2]
[370011695,1751829055598,-482.31,0.00020425,2]
[370011696,1751829055607,-333.36013735,0.00020425,2]
[370011697,1751829055620,-383.00986265,0.00020425,2]
[370011698,1751829055630,-201.23135488,0.00020425,2]
[370011699,1751829055639,-460.0,0.00020425,2]
[370011700,1751829055654,-460.0,0.00020425,2]
[370011701,1751829055664,-518.66,0.00020429,2]
[370011702,1751829055673,-460.0,0.00020429,2]
[370011703,1751829055683,-568.47,0.00020429,2]
[370011704,1751829055694,-644.88,0.00020429,2]
[370011705,1751829055703,-1673.97,0.00020429,2]
[370011706,1751829055713,-671.7,0.00020429,2]
[370011707,1751829055722,-1018.32,0.00020429,2]
[370011708,1751829055733,-1464.64,0.00020429,2]
[370011709,1751829055743,-1068.81,0.00020429,2]
[370011710,1751829055752,-2141.93,0.0002043,2]
[370011711,1751829055761,-1393.2,0.0002043,2]
[370011712,1751829055771,-521.21,0.0002043,2]
[370011713,1751829055780,-3697.57,0.0002043,2]
[370011714,1751829055790,-1179.98,0.0002043,2]
[370011715,1751829055800,-4989.65,0.00020469,2]
[370011716,1751829055809,-168.0,0.00020473,2]
[370011717,1751829055819,-168.0,0.00020486,2]
[370011718,1751829055828,-24193.49154578,0.000205,2]
[370011719,1751829055840,-1839.59115232,0.000205,2]
[370011720,1751829055851,-7355.30643935,0.000205,2]
[370011721,1751829055863,-13197.88736837,0.000205,2]
[370011722,1751829055873,-2765.18610255,0.000205,2]
[370011723,1751829055884,-3157.4254304,0.000205,2]
[370011724,1751829056056,-460.0,0.00017409,2]
[370011725,1751829056066,-151.0,0.00017417,2]
[370011726,1751829056075,-151.0,0.00017417,2]
[370011727,1751829056084,-151.0,0.00017417,2]
[370011728,1751829056093,-460.0,0.00017683,2]
[370011729,1751829056102,-460.0,0.00017957,2]
[370011730,1751829056111,-460.0,0.00018231,2]
[370011731,1751829056121,-460.0,0.00018505,2]
[370011732,1751829056130,-460.0,0.00018779,2]
[370011733,1751829056139,-7205.17897741,0.000205,2]
[370011734,1751829056152,-105761.3558404,0.000205,2]
[370011735,1751829056170,-463.49354728,0.000205,2]
[370011736,1751829056434,-151.0,0.00017417,2]
[370011737,1751829056443,-151.0,0.00017417,2]
[370011738,1751829056453,-151.0,0.00017417,2]
[370011739,1751829056462,-151.0,0.00017417,2]
[370011740,1751829056472,-151.0,0.00017417,2]
[370011741,1751829056481,-460.0,0.00019053,2]
[370011742,1751829056492,-460.0,0.00019327,2]
[370011743,1751829056502,-460.0,0.00019601,2]
[370011744,1751829056511,-460.0,0.00019875,2]
[370011745,1751829056520,-460.0,0.00020149,2]
[370011746,1751829056529,-460.0,0.00020423,2]
[370011747,1751829056539,-9464.95521345,0.000205,2]
[370011748,1751829056551,-255.58893534,0.000205,2]
[370011749,1751829056656,-460.0,0.00016863,2]
[370011750,1751829056666,-151.0,0.00017417,2]
[370011751,1751829056676,-151.0,0.00017417,2]
[370011752,1751829056685,-6306.13142432,0.000204,3]
[370011753,1751829057069,-0.01621474,0.000204,3]
[370011754,1751829057080,-458.5,0.000204,3]
[370011755,1751829057100,-460.0,0.00017137,2]
[370011756,1751829057110,-5817.68889918,0.000204,3]
[370011757,1751829057119,-7442.49064344,0.000205,2]
[370011759,1751829086608,1483.3040563,0.00016571,2]
[370011762,1751829127838,370000.0,0.00016761,2]
[370011763,1751829283408,189128.51407706,0.00016761,2]
[370011764,1751829303555,318.69578839,0.0001676,2]
[370011765,1751829315429,24900.0,0.00015863,2]
[370011766,1751829508619,278.85881485,0.00016759,2]
[370011767,1751829542016,500.0,0.0001668,2]
[370011768,1751829603129,5682.0,0.00016001,2]
[370011769,1751829713942,244.00146295,0.00016759,2]
[370011770,1751829859057,996.635149,0.00013699,2]
[370011775,1751829919981,232.93526408,0.00016758,2]
[370011777,1751830016138,-155.05404369,0.00016843,2]
[370011779,1751830126237,203.81835607,0.00016757,2]
[370011832,1751830231979,-296.78452648,0.00016854,2]
[370011833,1751830232036,-3.21547352,0.00016854,2]
[370011834,1751830232046,-534.88452648,0.00016854,2]
[370011875,1751830238002,-665.11547352,0.00016854,2]
[370011876,1751830238012,-500.0,0.00016855,2]
[370011878,1751830238022,-500.0,0.00016855,2]
[370011880,1751830238031,-500.0,0.00016855,2]
[370011882,1751830238040,-500.0,0.00016855,2]
[370011884,1751830238049,-500.0,0.00016855,2]
[370011886,1751830238059,-574.44266087,0.00016855,2]
[370011888,1751830238069,-438.98693413,0.00016855,2]
[370011890,1751830238078,-455.01114423,0.00016855,2]
[370011892,1751830238087,-3596.2879787,0.00016856,2]
[370011894,1751830238099,-277.2835584,0.00016856,2]
[370011896,1751830238110,-418.0000021,0.00016856,2]
[370011897,1751830238123,-18488.0785708,0.00016856,2]
[370011898,1751830238131,-893.04,0.00016856,2]
[370011899,1751830238140,-1095.7,0.00016856,2]
[370011900,1751830238150,-1331.97,0.00016857,2]
[370011901,1751830238159,-460.0,0.00016857,2]
[370011902,1751830238168,-986.41,0.00016857,2]
[370011903,1751830238177,-1243.99,0.00016857,2]
[370011904,1751830238186,-1304.93,0.00016857,2]
[370011905,1751830238195,-733.26,0.00016857,2]
[370011906,1751830238204,-460.0,0.00016857,2]
[370011907,1751830238213,-830.23,0.00016857,2]
[370011908,1751830238223,-586.81,0.00016857,2]
[370011910,1751830238237,-460.0,0.00016857,2]
[370011912,1751830238246,-460.0,0.00016857,2]
[370011913,1751830238255,-460.0,0.00016857,2]
[370011914,1751830238264,-460.0,0.00016858,2]
[370011915,1751830238273,-460.0,0.00016858,2]
[370011916,1751830238282,-1248.3,0.00016858,2]
[370011917,1751830238291,-460.0,0.00016858,2]
[370011918,1751830238301,-460.0,0.00016858,2]
[370011919,1751830238312,-460.0,0.00016858,2]
[370011920,1751830238321,-460.0,0.00016858,2]
[370011921,1751830238330,-460.0,0.00016858,2]
[370011922,1751830238339,-460.0,0.00016858,2]
[370011923,1751830238348,-460.0,0.00016858,2]
[370011924,1751830238357,-460.0,0.00016858,2]
[370011925,1751830238366,-460.0,0.00016858,2]
[370011926,1751830238375,-460.0,0.00016858,2]
[370011927,1751830238385,-460.0,0.00016858,2]
[370011928,1751830238395,-460.0,0.00016858,2]
[370011929,1751830238404,-460.0,0.00016858,2]
[370011930,1751830238414,-460.0,0.00016858,2]
[370011931,1751830238423,-460.0,0.00016858,2]
[370011932,1751830238433,-460.0,0.00016858,2]
[370011933,1751830238443,-460.0,0.00016858,2]
[370011934,1751830238453,-460.0,0.00016859,2]
[370011935,1751830238462,-460.0,0.00016859,2]
[370011936,1751830238472,-461.63516726,0.00016859,2]
[370011937,1751830238481,-380.0,0.00016859,2]
[370011938,1751830238490,-460.0,0.00016859,2]
[370011939,1751830238500,-158.12695598,0.00016859,2]
[370011940,1751830238509,-460.0,0.00016859,2]
[370011941,1751830238518,-211.6603477,0.00016859,2]
[370011942,1751830238527,-460.0,0.00016859,2]
[370011943,1751830238537,-460.0,0.00016859,2]
[370011944,1751830238546,-2183.17,0.00016859,2]
[370011945,1751830238555,-639.16,0.00016859,2]
[370011946,1751830238564,-460.0,0.0001686,2]
[370011947,1751830238573,-500.0,0.0001686,2]
[370011948,1751830238583,-460.0,0.0001686,2]
[370011949,1751830238592,-460.0,0.0001686,2]
[370011950,1751830238601,-460.0,0.0001686,2]
[370011951,1751830238610,-460.0,0.0001686,2]
[370011952,1751830238620,-460.0,0.0001686,2]
[370011953,1751830238628,-460.0,0.0001686,2]
[370011954,1751830238638,-460.0,0.0001686,2]
[370011955,1751830238647,-504.1,0.0001686,2]
[370011956,1751830238656,-460.0,0.0001686,2]
[370011957,1751830238665,-460.0,0.0001686,2]
[370011958,1751830238674,-460.0,0.0001686,2]
[370011959,1751830238683,-460.0,0.0001686,2]
[370011960,1751830238692,-460.0,0.0001686,2]
[370011961,1751830238701,-460.0,0.0001686,2]
[370011962,1751830238710,-341.46703057,0.0001686,2]
[370011963,1751830238719,-460.0,0.0001686,2]
[370011964,1751830238728,-460.0,0.0001686,2]
[370011965,1751830238737,-460.0,0.0001686,2]
[370011966,1751830238746,-460.0,0.00016862,2]
[370011967,1751830238755,-460.0,0.00016862,2]
[370011968,1751830238764,-466.00231493,0.00016862,2]
[370011969,1751830238773,-460.0,0.00016862,2]
[370011970,1751830238783,-460.0,0.00016862,2]
[370011971,1751830238792,-460.0,0.00016862,2]
[370011972,1751830238801,-460.0,0.00016862,2]
[370011973,1751830238810,-460.0,0.00016862,2]
[370011974,1751830238819,-2966.22,0.00016862,2]
[370011975,1751830238828,-460.0,0.00016862,2]
[370011976,1751830238837,-815.64,0.00016862,2]
[370011977,1751830238846,-460.0,0.00016862,2]
[370011978,1751830238855,-460.0,0.00016862,2]
[370011979,1751830238864,-460.0,0.00016862,2]
[370011980,1751830238873,-460.0,0.00016862,2]
[370011981,1751830238883,-831.68,0.00016862,2]
[370011982,1751830238892,-590.3,0.00016862,2]
[370011983,1751830238901,-460.0,0.00016862,2]
[370011984,1751830238910,-460.0,0.00016862,2]
[370011985,1751830238920,-460.0,0.00016862,2]
[370011986,1751830238929,-460.0,0.00016862,2]
[370011987,1751830238939,-460.0,0.00016862,2]
[370011988,1751830238948,-460.0,0.00016862,2]
[370011989,1751830238957,-1160.21,0.00016862,2]
[370011990,1751830238967,-578.94,0.00016862,2]
[370011991,1751830238976,-460.0,0.00016862,2]
[370011992,1751830238986,-460.0,0.00016862,2]
[370011993,1751830238995,-460.0,0.00016862,2]
[370011994,1751830239005,-503.36,0.00016862,2]
[370011995,1751830239014,-820.43,0.00016862,2]
[370011996,1751830239024,-519.90217004,0.00016862,2]
[370011997,1751830239033,-460.0,0.00016863,2]
[370011998,1751830239042,-464.88762049,0.00016863,2]
[370011999,1751830239052,-460.0,0.00016863,2]
[370012000,1751830239062,-460.0,0.00016863,2]
[370012001,1751830239071,-460.0,0.00016863,2]
[370012002,1751830239081,-460.0,0.00016863,2]
[370012003,1751830239090,-500.0,0.00016863,2]
[370012004,1751830239100,-30577.42791531,0.00017034,2]
[370012005,1751830239109,-893.04,0.0001713,2]
[370012006,1751830239119,-1095.7,0.0001713,2]
[370012007,1751830239129,-1331.97,0.00017131,2]
[370012008,1751830239138,-460.0,0.00017131,2]
[370012009,1751830239148,-986.41,0.00017131,2]
[370012010,1751830239158,-1243.99,0.00017131,2]
[370012011,1751830239168,-1304.93,0.00017131,2]
[370012012,1751830239178,-733.26,0.00017131,2]
[370012013,1751830239188,-460.0,0.00017131,2]
[370012014,1751830239350,-830.23,0.00017131,2]
[370012015,1751830239362,-586.81,0.00017131,2]
[370012016,1751830239372,-460.0,0.00017131,2]
[370012017,1751830239383,-460.0,0.00017131,2]
[370012018,1751830239393,-460.0,0.00017131,2]
[370012019,1751830239403,-275.01565437,0.00017132,2]
[370012020,1751830239412,-460.0,0.00017132,2]
[370012021,1751830239422,-1248.3,0.00017132,2]
[370012022,1751830239431,-460.0,0.00017132,2]
[370012023,1751830239440,-460.0,0.00017132,2]
[370012024,1751830239450,-460.0,0.00017132,2]
[370012025,1751830239459,-460.0,0.00017132,2]
[370012026,1751830239468,-460.0,0.00017132,2]
[370012027,1751830239477,-460.0,0.00017132,2]
[370012028,1751830239486,-460.0,0.00017132,2]
[370012029,1751830239495,-460.0,0.00017132,2]
[370012030,1751830239505,-460.0,0.00017132,2]
[370012031,1751830239514,-460.0,0.00017132,2]
[370012032,1751830239523,-460.0,0.00017132,2]
[370012033,1751830239533,-460.0,0.00017132,2]
[370012034,1751830239542,-460.0,0.00017132,2]
[370012035,1751830239551,-460.0,0.00017133,2]
[370012036,1751830239561,-460.0,0.00017133,2]
[370012037,1751830239571,-460.0,0.00017133,2]
[370012038,1751830239580,-460.0,0.00017133,2]
[370012039,1751830239589,-460.0,0.00017133,2]
[370012040,1751830239598,-463.37645513,0.00017133,2]
[370012041,1751830239608,-460.0,0.00017133,2]
[370012042,1751830239617,-460.0,0.00017133,2]
[370012043,1751830239626,-460.0,0.00017133,2]
[370012044,1751830239635,-2183.17,0.00017133,2]
[370012045,1751830239645,-639.16,0.00017133,2]
[370012046,1751830239654,-460.0,0.00017134,2]
[370012047,1751830239663,-460.0,0.00017134,2]
[370012048,1751830239672,-460.0,0.00017134,2]
[370012049,1751830239681,-504.1,0.00017134,2]
[370012050,1751830239691,-460.0,0.00017134,2]
[370012051,1751830239701,-460.0,0.00017134,2]
[370012052,1751830239710,-460.0,0.00017134,2]
[370012053,1751830239719,-460.0,0.00017136,2]
[370012054,1751830239728,-2966.22,0.00017136,2]
[370012055,1751830239737,-815.64,0.00017136,2]
[370012056,1751830239746,-460.0,0.00017136,2]
[370012057,1751830239755,-460.0,0.00017136,2]
[370012058,1751830239764,-831.68,0.00017136,2]
[370012059,1751830239774,-590.3,0.00017136,2]
[370012060,1751830239783,-224.5316254,0.00017136,2]
[370012061,1751830239792,-460.0,0.00017136,2]
[370012062,1751830239801,-1160.21,0.00017136,2]